bitfinex-derivatives/quotes_ETHF0:USTF0_20241229
["timestamp","ask_amount","ask_price","bid_price","bid_amount"]
[1735499269359,0.2976,3366.0,3365.7,3.50543]
[1735499270859,0.2976,3366.0,3365.7,3.2078]
[1735499271157,0.29761,3366.0,3365.7,3.50543]
[1735499272559,0.29761,3365.9,3365.7,3.50543]
[1735499272860,0.29761,3366.0,3365.7,3.50543]
[1735499273055,0.29761,3366.0,3365.8,0.29762]
[1735499273251,0.2976,3366.1,3365.8,0.29762]
[1735499273457,1.2222,3366.3,3365.7,3.2078]
[1735499273754,0.2976,3366.1,3365.9,0.29761]
[1735499274259,0.2976,3366.1,3366.0,0.6014]
[1735499276063,1.2222,3366.3,3366.0,0.6014]
[1735499276263,0.29759,3366.2,3366.0,0.6014]
[1735499276957,0.29759,3366.1,3366.0,0.6014]
[1735499277757,1.2222,3366.3,3366.0,0.6014]
[1735499277963,0.29759,3366.2,3366.0,0.6014]
[1735499280461,1.2222,3366.3,3366.0,0.6014]
[1735499280661,0.29759,3366.1,3365.8,0.29762]
[1735499283255,1.06141941,3366.0,3365.3,4.96231029]
[1735499283455,1.06141941,3365.8,3365.3,4.66465029]
[1735499283661,0.5805,3365.7,3365.3,4.66465029]
[1735499283861,0.29765,3365.5,3365.3,5.7260697]
[1735499284268,0.5725,3365.4,3365.3,1.06141941]
[1735499284871,0.5805,3365.7,3365.3,1.06141941]
[1735499285071,0.5805,3365.7,3365.6,1.35905941]
[1735499285267,0.5805,3365.7,3365.6,1.06141941]
[1735499285674,0.6171,3365.9,3365.6,1.06141941]
[1735499285875,3.2078,3366.1,3365.8,1.06141941]
[1735499286071,3.2078,3366.1,3366.0,1.35901941]
[1735499286272,0.6171,3366.3,3366.1,0.29759]
[1735499286473,0.6171,3366.3,3366.2,0.29759]
[1735499286970,0.6171,3366.3,3365.9,3.42893603]
[1735499287376,0.6171,3366.3,3366.1,0.29759]
[1735499289169,0.5812,3366.4,3366.2,0.29759]
[1735499289370,3.2078,3366.6,3366.3,0.86687]
[1735499289572,3.2078,3366.6,3366.4,0.29756]
[1735499289971,3.2078,3366.6,3366.3,1.1307]
[1735499290172,3.2078,3366.6,3366.5,2.53919603]
[1735499291579,4.86642175,3367.4,3366.9,0.29752]
[1735499291580,0.2975,3367.2,3366.9,0.29752]
[1735499291780,0.29751,3367.1,3367.0,0.5767]
[1735499291977,0.2975,3367.2,3367.0,0.5767]
[1735499292676,0.886,3367.3,3367.0,0.5767]
[1735499292877,0.2975,3367.2,3367.0,0.5767]
[1735499293079,0.88599,3367.3,3367.0,0.5767]
[1735499294177,0.29749,3367.4,3367.0,0.87421]
[1735499294478,1.1599,3367.5,3367.0,0.5767]
[1735499294779,0.29748,3367.4,3367.0,0.87421]
[1735499296485,0.2975,3367.2,3367.0,0.5767]
[1735499298678,1.1599,3367.5,3366.6,0.574]
[1735499298881,0.6113,3367.1,3366.5,3.7715]
[1735499299084,0.6113,3367.1,3366.4,5.27115029]
[1735499299283,0.6173,3367.0,3366.4,5.27115029]
[1735499299785,0.29755,3366.6,3366.4,0.6065]
[1735499299986,0.6113,3367.1,3366.4,2.84813603]
[1735499300283,0.6113,3367.1,3366.5,0.29755]
[1735499300478,0.29753,3366.9,3366.5,0.29755]
[1735499301682,0.6113,3367.1,3366.4,2.84813603]
[1735499301877,0.29754,3366.8,3366.4,2.84813603]
[1735499302278,0.29754,3366.8,3366.5,0.29756]
[1735499303687,0.29754,3366.8,3366.4,3.14569603]
[1735499304583,0.29754,3366.8,3366.5,0.29756]
[1735499306089,0.6113,3367.1,3366.7,2.24163603]
[1735499306286,0.29751,3367.1,3366.8,0.88973]
[1735499306485,0.29751,3367.1,3366.9,0.29752]
[1735499307088,0.29751,3367.1,3366.8,1.1694]
[1735499307290,0.29752,3367.0,3366.8,1.46693]
[1735499308585,0.29752,3367.0,3366.8,6.13158029]
[1735499309282,0.29752,3367.0,3366.9,0.29752]
[1735499309482,0.541,3367.4,3366.9,0.29752]
[1735499309681,0.541,3367.4,3366.9,3.50532]
[1735499309888,0.29752,3367.0,3366.9,3.2078]
[1735499310880,0.541,3367.4,3366.9,3.2078]
[1735499311079,0.29752,3367.0,3366.9,3.50532]
[1735499311791,0.29751,3367.1,3366.9,3.50532]
[1735499312284,0.5794,3367.5,3366.9,3.50532]
[1735499312285,0.5794,3367.5,3367.0,2.24163603]
[1735499312595,0.29748,3367.4,3367.0,2.24163603]
[1735499313093,3.80906175,3367.8,3367.6,0.29746]
[1735499313291,3.80906175,3367.8,3367.7,1.6948]
[1735499313292,0.29745,3367.8,3367.7,1.6948]
[1735499313891,6.71941175,3368.0,3367.7,1.6948]
[1735499314092,0.29744,3367.9,3367.7,1.6948]
[1735499315091,3.2078,3368.0,3367.7,1.6948]
[1735499315287,3.2078,3368.0,3367.9,2.24163603]
[1735499315485,3.2078,3368.0,3367.9,2.53907603]
[1735499315685,3.51161175,3368.4,3368.1,0.29741]
[1735499315884,3.51161175,3368.4,3368.2,2.24163603]
[1735499316094,3.51161175,3368.4,3368.3,0.2974]
[1735499316389,3.51161175,3368.4,3368.3,1.7148]
[1735499316593,1.112,3368.5,3368.3,1.7148]
[1735499316794,1.40939,3368.5,3368.3,1.7148]
[1735499317386,1.112,3368.5,3368.3,2.0122]
[1735499317587,3.51161175,3368.8,3368.3,1.7148]
[1735499317789,0.29738,3368.6,3368.3,2.0122]
[1735499317993,0.29737,3368.7,3368.4,0.29739]
[1735499318194,0.29737,3368.7,3368.3,2.01219]
[1735499318494,0.5502,3368.8,3368.3,1.7148]
[1735499318691,0.29737,3368.7,3368.4,0.29739]
[1735499318899,0.84756,3368.8,3368.4,0.29739]
[1735499319792,0.29738,3368.6,3368.3,1.7148]
[1735499320891,0.5502,3368.8,3368.3,1.7148]
[1735499321194,0.29737,3368.7,3368.3,2.0122]
[1735499321789,0.84756,3368.8,3368.5,0.29738]
[1735499322287,0.84756,3368.8,3368.4,0.29738]
[1735499322687,0.84756,3368.8,3368.3,2.0122]
[1735499322688,0.29737,3368.7,3368.3,2.0122]
[1735499323490,0.5502,3368.8,3368.3,0.5945]
[1735499323695,0.29741,3368.2,3368.1,3.2078]
[1735499324097,0.29744,3367.8,3367.7,4.66465029]
[1735499324292,3.50524,3367.8,3367.7,4.66465029]
[1735499325405,0.29746,3367.7,3367.4,2.24163603]
[1735499325594,3.2078,3367.8,3367.4,2.24163603]
[1735499325595,0.29746,3367.6,3367.4,2.24163603]
[1735499326099,0.29747,3367.5,3367.4,2.24163603]
[1735499326895,3.2078,3367.7,3367.4,2.24163603]
[1735499327204,0.29747,3367.5,3367.4,2.24163603]
[1735499330003,0.29747,3367.5,3367.3,1.1245]
[1735499330004,3.2078,3367.7,3367.3,1.1245]
[1735499330304,0.29748,3367.4,3367.3,1.42199]
[1735499331802,0.29748,3367.4,3367.3,1.1245]
[1735499333195,0.29751,3367.1,3367.0,3.2078]
[1735499335898,0.2975,3367.2,3367.0,3.50531]
[1735499336099,0.574,3367.3,3367.0,3.50531]
[1735499336100,0.87149,3367.3,3367.0,3.50531]
[1735499338298,0.574,3367.3,3367.0,3.2078]
[1735499338505,0.574,3367.3,3367.1,0.2975]
[1735499339098,0.574,3367.3,3367.2,0.5323]
[1735499339504,0.87149,3367.3,3367.2,0.5323]
[1735499340408,0.574,3367.3,3367.2,0.5323]
[1735499340602,0.87149,3367.3,3367.2,0.5323]
[1735499345512,0.2975,3367.2,3366.9,0.29752]
[1735499345704,0.2975,3367.2,3366.9,0.85922]
[1735499348707,0.29751,3367.1,3366.9,0.85922]
[1735499348912,0.574,3367.3,3366.9,0.85922]
[1735499348913,0.2975,3367.2,3366.9,0.85922]
[1735499349514,0.574,3367.3,3366.9,0.85922]
[1735499349714,0.29751,3367.1,3366.9,0.85922]
[1735499350014,0.29751,3367.1,3366.9,0.5617]
[1735499350216,3.20991375,3367.1,3366.6,4.66465029]
[1735499350413,0.29755,3366.6,3366.5,6.99697543]
[1735499352316,0.29755,3366.6,3366.1,14.90482204]
[1735499352317,0.29758,3366.3,3366.2,4.65424376]
[1735499354011,0.29759,3366.2,3366.1,3.2078]
[1735499354619,0.5347,3366.4,3365.8,1.5989]
[1735499354817,0.5347,3366.4,3365.8,4.8067]
[1735499355019,0.29761,3365.9,3365.8,3.7468]
[1735499355413,0.29761,3366.0,3365.8,3.7468]
[1735499355718,0.2976,3366.0,3365.8,3.7468]
[1735499356611,3.2078,3366.2,3365.8,3.7468]
[1735499356612,0.29761,3365.9,3365.8,3.7468]
[1735499358411,0.29761,3365.9,3365.8,3.2078]
[1735499358624,0.29765,3365.5,3365.4,0.5655]
[1735499359015,3.7581,3365.8,3365.3,4.65424376]
[1735499359214,3.7581,3365.8,3365.2,0.5681]
[1735499359215,0.29767,3365.3,3365.2,0.5681]
[1735499363913,0.29764,3365.6,3365.0,5.44943603]
[1735499364118,0.29767,3365.3,3365.0,5.98763603]
[1735499364619,3.7581,3365.8,3365.0,6.28532603]
[1735499364818,0.29767,3365.3,3365.0,6.28532603]
[1735499365019,3.7581,3365.8,3365.0,5.98763603]
[1735499365219,0.29767,3365.3,3365.0,5.98763603]
[1735499365523,0.29768,3365.2,3365.0,5.98763603]
[1735499366421,4.50217,3365.8,3365.0,5.98763603]
[1735499366721,4.50217,3365.8,3365.0,0.5382]
[1735499366722,0.29768,3365.1,3365.0,0.5382]
[1735499367316,1.1088,3365.2,3364.8,0.565]
[1735499367517,0.2977,3364.9,3364.8,0.565]
[1735499368132,0.5759,3365.9,3364.8,0.565]
[1735499368322,1.1088,3365.8,3365.7,2.24163603]
[1735499368623,0.29764,3365.6,3365.5,1.6384]
[1735499373120,0.29764,3365.6,3365.5,0.5283]
[1735499374421,0.5471,3365.8,3365.2,1.1056]
[1735499374625,0.29768,3365.1,3365.0,0.5321]
[1735499374928,3.50548,3365.1,3365.0,0.5321]
[1735499379132,0.2977,3364.9,3364.8,0.5489]
[1735499387034,1.0883,3365.0,3364.6,0.5266]
[1735499387234,0.29772,3364.7,3364.6,0.5266]
[1735499398142,0.29772,3364.7,3364.6,5.18084376]
[1735499402249,0.29772,3364.7,3364.6,5.47181756]
[1735499403845,0.29772,3364.7,3364.6,12.46879299]
[1735499406445,0.29772,3364.7,3364.6,5.47181756]
[1735499408247,0.29772,3364.7,3364.6,6.53396045]
[1735499412652,0.29772,3364.7,3364.6,5.47181756]
[1735499414442,0.29772,3364.7,3364.6,5.20180211]
[1735499417455,2.32694929,3364.9,3364.6,6.263945]
[1735499417653,0.29771,3364.8,3364.7,1.06214289]
[1735499418652,2.62465929,3364.9,3364.7,1.06214289]
[1735499418960,0.2977,3364.9,3364.8,1.1391]
[1735499419654,2.88724929,3365.0,3364.8,1.43681]
[1735499419856,2.32694929,3365.0,3364.9,1.35984289]
[1735499420654,3.2078,3365.1,3364.9,2.12428578]
[1735499420859,3.2078,3365.1,3365.0,0.29769]
[1735499421063,3.51161175,3365.2,3365.1,0.29768]
[1735499421358,3.51161175,3365.2,3365.1,4.56762289]
[1735499421960,1.74061175,3365.7,3365.1,4.26994289]
[1735499422154,1.74061175,3365.7,3365.6,1.35978289]
[1735499422462,1.74061175,3365.7,3365.6,0.29764]
[1735499423472,3.2078,3365.9,3365.6,14.84968091]
[1735499423766,3.2078,3365.9,3365.8,0.29762]
[1735499424567,3.50542,3365.9,3365.7,0.5562]
[1735499425269,3.2078,3365.9,3365.8,4.94901052]
[1735499425658,3.2078,3365.9,3365.8,7.48876667]
[1735499425863,0.5448,3366.5,3365.8,7.95004667]
[1735499426059,0.5448,3366.5,3366.1,2.24213615]
[1735499426368,4.66115189,3366.6,3366.4,3.50536]
[1735499426671,4.95870189,3366.6,3366.5,0.5884]
[1735499426968,0.29755,3366.7,3366.5,0.5884]
[1735499427165,0.29755,3366.6,3366.5,0.5884]
[1735499428867,0.29755,3366.6,3366.3,4.66454497]
[1735499429170,0.29757,3366.4,3366.3,4.66454497]
[1735499430272,0.29757,3366.4,3366.1,2.24213615]
[1735499430865,3.2078,3366.8,3366.1,2.24213615]
[1735499431165,0.29756,3366.5,3366.1,2.24213615]
[1735499431567,0.29756,3366.5,3366.1,6.90668112]
[1735499432166,0.29757,3366.4,3366.1,6.90668112]
[1735499432367,3.2078,3366.8,3366.1,7.20427112]
[1735499433077,0.29756,3366.6,3366.1,2.53972615]
[1735499433374,0.29756,3366.6,3366.2,0.29758]
[1735499433575,0.5725,3366.5,3366.2,0.29758]
[1735499433770,0.87006,3366.5,3366.1,2.53972615]
[1735499434972,0.87006,3366.5,3366.1,2.24213615]
[1735499435181,0.87006,3366.5,3366.2,0.29759]
[1735499435374,0.87006,3366.5,3366.1,2.53972615]
[1735499435773,0.87006,3366.5,3366.2,0.29759]
[1735499435967,0.5725,3366.5,3366.2,0.29759]
[1735499436175,0.5725,3366.5,3366.3,0.29757]
[1735499436576,0.5725,3366.5,3366.1,2.24213615]
[1735499436977,0.29755,3366.7,3366.4,2.24213615]
[1735499437276,0.29755,3366.7,3366.5,0.5622]
[1735499437683,0.29755,3366.6,3366.5,0.5622]
[1735499439981,0.29755,3366.6,3366.3,0.29757]
[1735499441281,0.29756,3366.5,3366.3,0.29757]
[1735499442980,3.7487,3366.8,3366.2,0.5791]
[1735499443178,3.7487,3366.8,3366.0,3.2078]
[1735499443485,0.29761,3365.9,3365.8,4.66454497]
[1735499444083,0.29761,3365.9,3365.8,6.90668112]
[1735499444285,0.29761,3365.9,3365.8,2.24213615]
[1735499452288,0.29761,3365.9,3365.8,1.06124891]
[1735499452785,0.29761,3365.9,3365.8,1.35886891]
[1735499456698,0.29761,3366.0,3365.9,0.29761]
[1735499456890,1.7262,3366.3,3366.2,0.29759]
[1735499457192,1.7262,3366.3,3366.2,1.35883891]
[1735499457389,0.5829,3366.3,3366.2,1.35883891]
[1735499457600,3.2078,3366.4,3366.3,0.29758]
[1735499457993,3.2078,3366.4,3366.3,0.69938]
[1735499458298,0.5731,3366.7,3366.6,0.29755]
[1735499458500,0.5731,3366.7,3366.6,1.35879891]
[1735499459992,0.29757,3366.4,3366.3,3.2078]
[1735499460196,0.5731,3366.7,3366.2,7.87234497]
[1735499460498,0.87065,3366.7,3366.5,0.29756]
[1735499460702,0.29755,3366.6,3366.5,0.29756]
[1735499460887,0.87065,3366.7,3366.5,0.29756]
[1735499461092,0.5731,3366.7,3366.6,0.29755]
[1735499461300,0.5731,3366.7,3366.6,3.50535]
[1735499462199,0.5731,3366.7,3366.6,3.2078]
[1735499462493,0.87065,3366.7,3366.5,0.29756]
[1735499464410,0.87065,3366.7,3366.5,4.96210497]
[1735499464999,0.5731,3366.7,3366.6,0.29755]
[1735499465493,0.5731,3366.7,3366.6,4.96209497]
[1735499465895,0.87064,3366.7,3366.6,4.66454497]
[1735499466196,0.87064,3366.7,3366.6,2.90174497]
[1735499466392,0.29756,3366.5,3366.4,2.75731936]
[1735499466596,0.29756,3366.5,3366.2,9.33629244]
[1735499466597,0.29758,3366.3,3366.2,7.09309244]
[1735499466900,0.29759,3366.2,3366.1,6.45349244]
[1735499467402,5.29759,3366.2,3366.1,5.91354004]
[1735499467597,5.29759,3366.2,3366.1,5.28874004]
[1735499468193,0.29759,3366.2,3366.1,5.28874004]
[1735499468394,0.29763,3365.8,3365.5,0.3426]
[1735499468601,0.29761,3365.9,3365.5,0.64025]
[1735499468792,3.2078,3366.0,3365.7,0.29763]
[1735499468997,3.2078,3366.0,3365.9,0.29761]
[1735499469297,5.83408595,3366.3,3366.2,0.29759]
[1735499469496,3.2078,3366.4,3366.2,0.29759]
[1735499469696,3.2078,3366.4,3366.3,0.5314]
[1735499471405,3.2078,3366.8,3366.3,0.5314]
[1735499472296,0.29754,3366.7,3366.3,0.82897]
[1735499472505,0.29754,3366.7,3366.4,0.5353]
[1735499472897,0.29755,3366.6,3366.4,0.5353]
[1735499473799,0.88162,3367.0,3366.6,0.29755]
[1735499473997,7.88306489,3367.2,3366.6,2.24141224]
[1735499474197,0.29752,3366.9,3366.6,2.24141224]
[1735499475999,0.29753,3366.8,3366.6,2.24141224]
[1735499476202,0.29752,3367.0,3366.6,2.53896224]
[1735499476706,0.29752,3367.0,3366.9,3.2078]
[1735499477101,0.29751,3367.1,3366.9,3.2078]
[1735499477299,0.29751,3367.1,3367.0,0.5416]
[1735499478399,0.2975,3367.3,3367.0,1.1019]
[1735499478598,0.2975,3367.3,3367.1,0.5659]
[1735499479416,0.29755,3366.6,3366.5,3.2078]
[1735499480498,0.29755,3366.7,3366.5,3.2078]
[1735499480699,0.5683,3367.1,3366.5,3.2078]
[1735499480899,0.29752,3367.0,3366.6,0.29755]
[1735499481604,2.24141224,3367.0,3366.5,3.2078]
[1735499481806,0.29755,3366.6,3366.5,3.2078]
[1735499484215,5.0,3366.6,3365.8,0.5448]
[1735499484511,0.29761,3365.9,3365.8,0.5448]
[1735499486611,3.2078,3366.2,3365.8,0.5448]
[1735499486804,0.29761,3366.0,3365.8,0.5448]
[1735499487201,3.2078,3366.2,3365.9,2.24141224]
[1735499487406,3.2078,3366.2,3366.0,0.5694]
[1735499487615,3.2078,3366.2,3366.0,1.1459]
[1735499489704,3.50539,3366.2,3366.0,1.1459]
[1735499489909,0.29759,3366.1,3366.0,1.1459]
[1735499502116,3.50539,3366.1,3366.0,1.1459]
[1735499505128,3.2078,3366.1,3365.0,11.57321821]
[1735499505326,0.29768,3365.5,3365.4,0.5612]
[1735499505624,3.50548,3365.5,3365.4,0.5612]
[1735499507027,3.2078,3365.5,3365.2,1.0807]
[1735499507228,0.2977,3365.3,3365.2,1.0807]
[1735499508124,3.7727,3365.5,3365.1,0.5612]
[1735499508324,0.2977,3365.2,3365.1,0.5612]
[1735499509732,0.2977,3365.3,3365.1,0.5612]
[1735499510825,0.2977,3365.2,3365.1,0.5612]
[1735499512430,3.2078,3365.3,3365.1,0.5612]
[1735499512625,3.5055,3365.3,3365.1,0.5612]
[1735499513331,3.2078,3365.3,3365.1,0.5612]
[1735499513728,3.2078,3365.3,3365.1,0.85891]
[1735499514327,3.5055,3365.3,3365.1,0.5612]
[1735499515233,3.2078,3365.3,3365.1,0.5612]
[1735499515427,0.2977,3365.2,3365.1,0.5612]
[1735499516326,3.2078,3365.3,3365.1,0.5612]
[1735499516534,3.2078,3365.3,3365.2,0.2977]
[1735499516938,2.34,3365.3,3365.2,0.2977]
[1735499517638,0.29768,3365.5,3365.3,0.29769]
[1735499517834,3.2078,3365.7,3365.4,1.0749]
[1735499518035,0.29765,3365.8,3365.7,0.29766]
[1735499519240,0.29765,3365.8,3365.6,2.24141224]
[1735499519434,0.29765,3365.8,3365.6,2.53907224]
[1735499520043,0.29766,3365.7,3365.6,2.53907224]
[1735499521348,0.74407,3366.1,3365.5,0.5216]
[1735499521537,0.29767,3365.6,3365.5,0.5216]
[1735499521738,0.29767,3365.6,3365.5,0.81928]
[1735499526850,0.29767,3365.6,3365.5,5.46859013]
[1735499527547,0.29766,3365.7,3365.6,0.29766]
[1735499529449,0.29766,3365.7,3365.6,4.94697013]
[1735499529847,3.2078,3366.1,3365.6,4.64931013]
[1735499530047,0.29766,3365.8,3365.7,0.29766]
[1735499531957,3.2078,3366.1,3366.0,0.29763]
[1735499531958,3.50542,3366.1,3366.0,0.29763]
[1735499534950,0.5684,3366.4,3365.8,6.99955203]
[1735499535253,0.29762,3366.2,3366.1,0.29762]
[1735499535655,0.29761,3366.3,3365.9,0.29764]
[1735499535858,0.29761,3366.3,3366.0,1.0792]
[1735499536061,0.29762,3366.2,3366.0,1.37683]
[1735499536556,0.29762,3366.2,3366.0,13.02984193]
[1735499537755,0.29762,3366.2,3366.0,1.37683]
[1735499543362,0.29762,3366.1,3366.0,1.0792]
[1735499544750,0.29762,3366.1,3366.0,0.5459]
[1735499544951,0.29764,3365.9,3365.8,6.99955203]
[1735499545157,2.53905224,3365.9,3365.8,6.99955203]
[1735499545359,2.53905224,3365.9,3365.8,5.27655203]
[1735499546564,0.29769,3365.4,3365.3,0.5426]
[1735499548157,5.54432451,3365.7,3365.3,0.5426]
[1735499548362,5.54432451,3365.7,3365.4,2.24141224]
[1735499548558,5.54432451,3365.7,3365.5,0.29767]
[1735499548764,5.54432451,3365.7,3365.6,0.83287]
[1735499548960,3.2078,3365.7,3365.6,0.83287]
[1735499549466,3.2078,3365.7,3365.6,0.5352]
[1735499550260,0.29765,3365.8,3365.6,0.5352]
[1735499550461,2.33652451,3366.0,3365.6,0.5352]
[1735499550662,0.29765,3365.8,3365.6,0.5352]
[1735499552266,0.29766,3365.7,3365.6,0.5352]
[1735499555571,3.50546,3365.7,3365.6,0.5352]
[1735499556163,0.2977,3365.2,3365.1,9.33180597]
[1735499556871,0.7442,3365.5,3365.0,0.5305]
[1735499556872,0.29771,3365.1,3365.0,0.5305]
[1735499557273,0.5332,3365.6,3365.0,0.82822]
[1735499557571,0.29769,3365.4,3365.1,0.29771]
[1735499557965,0.29769,3365.4,3365.2,0.5423]
[1735499558166,0.29769,3365.4,3365.3,0.5457]
[1735499575383,3.50549,3365.4,3365.3,0.5457]
[1735499575981,0.29769,3365.4,3365.3,0.5457]
[1735499576184,3.50549,3365.4,3365.3,0.5457]
[1735499579489,0.29769,3365.4,3365.3,0.5457]
[1735499579991,3.50549,3365.4,3365.3,0.5457]
[1735499580993,0.29769,3365.4,3365.3,0.5457]
[1735499581294,3.50549,3365.4,3365.3,0.5457]
[1735499582389,0.29769,3365.4,3365.3,0.5457]
[1735499582593,3.50549,3365.4,3365.3,0.5457]
[1735499586994,0.29769,3365.4,3365.3,0.5457]
[1735499587194,3.50549,3365.4,3365.3,0.5457]
[1735499589197,3.50549,3365.4,3365.1,4.67415773]
[1735499589198,0.2977,3365.2,3365.1,4.67415773]
[1735499589399,1.35961456,3365.2,3365.1,4.67415773]
[1735499590391,2.54198296,3365.2,3365.1,4.67415773]
[1735499591592,0.29775,3364.7,3364.6,5.74515773]
[1735499592892,0.29775,3364.7,3364.6,1.071]
[1735499600607,3.50555,3364.7,3364.6,1.071]
[1735499603910,5.8456355,3364.7,3364.6,1.071]
[1735499605414,3.50555,3364.7,3364.6,1.071]
[1735499608021,0.29775,3364.7,3364.6,1.071]
[1735499608221,3.50555,3364.7,3364.6,1.071]
[1735499609719,0.29775,3364.7,3364.6,1.071]
[1735499611721,3.50555,3364.7,3364.6,1.071]
[1735499612824,0.29775,3364.7,3364.6,1.071]
[1735499621832,1.36012962,3364.7,3364.6,1.071]
[1735499623831,0.29775,3364.7,3364.6,1.071]
[1735499625833,5.5478855,3364.8,3364.7,0.29775]
[1735499626136,2.3400855,3364.8,3364.7,0.29775]
[1735499627137,2.6378055,3365.1,3364.8,0.29773]
[1735499627434,2.3400855,3365.1,3365.0,1.36009962]
[1735499627634,3.51012826,3365.2,3365.0,1.06237962]
[1735499627822,3.51012826,3365.2,3365.1,0.29771]
[1735499628026,3.51012826,3365.2,3365.1,0.89041]
[1735499628925,3.2078,3365.3,3365.2,0.2977]
[1735499629731,3.2078,3365.3,3365.1,12.22196306]
[1735499629930,3.5055,3365.3,3365.1,12.22196306]
[1735499630334,3.5055,3365.3,3365.2,4.61588187]
[1735499630937,3.5055,3365.3,3365.2,5.20848187]
[1735499631742,3.5055,3365.3,3365.2,0.5926]
[1735499632033,0.2977,3365.3,3365.2,0.5926]
[1735499635431,4.27017962,3365.4,3365.2,5.26625646]
[1735499635634,0.2977,3365.3,3365.2,5.26625646]
[1735499635832,0.2977,3365.3,3365.2,4.67365646]
[1735499636238,3.2078,3365.4,3365.2,4.97135646]
[1735499636539,3.2078,3365.4,3365.2,0.2977]
[1735499637040,3.2078,3365.4,3365.1,7.18334608]
[1735499637041,3.50549,3365.4,3365.1,7.18334608]
[1735499637338,3.2078,3365.4,3365.2,0.2977]
[1735499637935,3.2078,3365.4,3365.3,4.67365646]
[1735499638441,3.50549,3365.4,3365.3,4.67365646]
[1735499639133,3.50549,3365.4,3365.3,4.67018331]
[1735499641241,0.29769,3365.4,3365.3,4.67018331]
[1735499641646,0.29769,3365.4,3365.2,7.31108119]
[1735499642237,0.29769,3365.4,3365.3,4.66797086]
[1735499645236,3.2078,3365.7,3365.3,4.66797086]
[1735499645445,0.29768,3365.5,3365.4,0.5776]
[1735499645839,3.2078,3365.7,3365.4,0.5776]
[1735499646038,0.29767,3365.6,3365.4,0.87528]
[1735499646238,0.29767,3365.6,3365.5,0.5831]
[1735499653045,0.29769,3365.4,3365.3,4.15072757]
[1735499653344,1.36006962,3365.4,3365.3,2.63057486]
[1735499653847,0.29769,3365.4,3365.3,2.63057486]
[1735499654448,0.2977,3365.3,3365.1,0.5604]
[1735499654841,0.29769,3365.4,3365.1,0.85811]
[1735499656348,1.189,3365.5,3365.1,0.5604]
[1735499656546,0.29769,3365.4,3365.1,0.85811]
[1735499657844,1.189,3365.5,3365.1,0.85811]
[1735499658149,0.2977,3365.3,3365.1,0.85811]
[1735499658850,0.2977,3365.3,3365.1,0.5604]
[1735499659450,0.2977,3365.2,3365.1,0.5604]
[1735499659853,0.2977,3365.3,3365.1,0.5604]
[1735499660350,0.2977,3365.2,3365.1,0.5604]
[1735499664955,3.5055,3365.2,3365.1,0.5604]
[1735499665460,0.29771,3365.1,3365.0,0.5774]
[1735499665654,0.90011,3365.1,3365.0,0.5774]
[1735499666158,0.29772,3365.0,3364.9,7.01338119]
[1735499666359,1.94739962,3365.0,3364.9,7.01338119]
[1735499667361,0.29777,3364.5,3364.4,7.01338119]
[1735499669160,0.29778,3364.4,3364.2,10.17045081]
[1735499669963,0.29778,3364.3,3364.2,10.17045081]
[1735499671455,0.29778,3364.3,3364.2,14.7871273]
[1735499672959,0.29778,3364.3,3364.2,13.42695768]
[1735499673562,0.29778,3364.3,3364.2,14.4893373]
[1735499674160,0.29778,3364.3,3364.2,2.85927962]
[1735499691371,0.2978,3364.2,3364.0,0.29781]
[1735499691673,0.2978,3364.2,3364.0,1.36018962]
[1735499692374,0.29781,3364.0,3363.9,1.7199]
[1735499695776,0.29781,3364.0,3363.9,2.01772]
[1735499696266,0.29781,3364.0,3363.9,6.6310668]
[1735499697671,0.29781,3364.0,3363.9,13.64444799]
[1735499698978,1.94384,3364.5,3363.9,13.34662799]
[1735499699179,1.94384,3364.5,3364.1,1.06237962]
[1735499699475,0.29779,3364.2,3364.1,1.06237962]
[1735499702076,0.29779,3364.2,3364.1,5.67869619]
[1735499703472,0.29779,3364.2,3364.1,5.97649619]
[1735499704478,0.29779,3364.2,3364.1,5.67869619]
[1735499704980,0.29779,3364.2,3364.1,12.68173184]
[1735499705181,0.29779,3364.2,3364.1,11.61935222]
[1735499705772,1.36016962,3364.2,3364.1,11.61935222]
[1735499706878,1.36016962,3364.2,3363.6,0.5698]
[1735499706879,0.29782,3363.9,3363.8,7.00303565]
[1735499707178,3.50562,3363.9,3363.8,7.00303565]
[1735499707583,4.11352,3363.9,3363.8,7.00303565]
[1735499708978,0.29784,3363.8,3363.6,7.57283565]
[1735499709480,0.5508,3363.7,3363.6,7.57283565]
[1735499710585,0.84864,3363.7,3363.6,7.57283565]
[1735499711485,0.5508,3363.7,3363.6,7.57283565]
[1735499711985,0.84864,3363.7,3363.6,5.19734711]
[1735499714087,3.50563,3363.8,3363.6,5.49519711]
[1735499714387,3.50563,3363.8,3363.7,1.06237962]
[1735499714586,3.50563,3363.8,3363.7,1.61587962]
[1735499714792,0.29783,3363.8,3363.7,1.61587962]
[1735499714982,3.50563,3363.8,3363.7,1.61587962]
[1735499715381,3.2078,3363.8,3363.7,1.91371962]
[1735499716085,3.2078,3363.8,3363.7,13.55918713]
[1735499716485,3.50563,3363.8,3363.7,12.19896751]
[1735499717983,3.50563,3363.8,3363.7,0.5535]
[1735499724992,3.50563,3363.8,3363.4,10.69204559]
[1735499724993,4.27017962,3363.8,3363.5,7.0179204]
[1735499725194,0.29785,3363.6,3363.5,7.0179204]
[1735499726396,4.84067962,3363.8,3363.4,0.5931]
[1735499726594,0.29785,3363.5,3363.4,0.5931]
[1735499727991,0.29785,3363.5,3363.4,1.95333962]
[1735499728193,3.2078,3363.8,3363.4,1.65547962]
[1735499728493,0.29784,3363.7,3363.6,1.36022962]
[1735499728685,0.29784,3363.7,3363.6,1.06237962]
[1735499729382,0.29784,3363.7,3363.6,12.70265152]
[1735499733101,0.29784,3363.7,3363.6,5.68473112]